[Event "Titled Tuesday Blitz March 07 Early 2023"]
[White "Kamsky, Gata"]
[Black "Matlakov, Maxim"]
[WhiteFideId "2000024"]
[BlackFideId "4168003"]
[WhiteElo "2666"]
[BlackElo "2666"]
[Result "1-0"]
[Round "08"]
[TimeControl "180+2"]
[Date "2023.03.07"]
[WhiteClock "0:01:22"]
[BlackClock "0:00:39"]

1. e4 {[%clk 0:03:00]}  e5 {[%clk 0:02:57]} 2. Nf3 {[%clk 0:03:00]}  Nc6 {[%clk 0:02:57]} 3. Bb5 {[%clk 0:03:00]}  a6 {[%clk 0:02:57]} 4. Ba4 {[%clk 0:03:00]}  Nf6 {[%clk 0:02:56]} 5. O-O {[%clk 0:03:00]}  Be7 {[%clk 0:02:56]} 6. Re1 {[%clk 0:03:00]}  b5 {[%clk 0:02:56]} 7. Bb3 {[%clk 0:03:00]}  O-O {[%clk 0:02:56]} 8. c3 {[%clk 0:02:59]}  d5 {[%clk 0:02:53]} 9. d3 {[%clk 0:02:59]}  Bb7 {[%clk 0:02:46]} 10. Nbd2 {[%clk 0:02:53]}  Qd7 {[%clk 0:02:31]} 11. a4 {[%clk 0:02:46]}  Rad8 {[%clk 0:02:28]} 12. axb5 {[%clk 0:02:46]}  axb5 {[%clk 0:02:29]} 13. exd5 {[%clk 0:02:38]}  Nxd5 {[%clk 0:02:29]} 14. Ne4 {[%clk 0:02:33]}  Nf6 {[%clk 0:02:17]} 15. Ng3 {[%clk 0:02:02]}  Qxd3 {[%clk 0:02:04]} 16. Qxd3 {[%clk 0:02:01]}  Rxd3 {[%clk 0:02:05]} 17. Nxe5 {[%clk 0:01:57]}  Nxe5 {[%clk 0:01:55]} 18. Rxe5 {[%clk 0:01:57]}  Bd6 {[%clk 0:01:37]} 19. Rxb5 {[%clk 0:01:55]}  Bc6 {[%clk 0:01:37]} 20. Rba5 {[%clk 0:01:51]}  Re8 {[%clk 0:01:29]} 21. Bg5 {[%clk 0:01:49]}  Ng4 {[%clk 0:01:20]} 22. Bc4 {[%clk 0:01:41]}  Bxg3 {[%clk 0:01:13]} 23. hxg3 {[%clk 0:01:40]}  Rd6 {[%clk 0:01:00]} 24. Bf4 {[%clk 0:01:32]}  Rf6 {[%clk 0:01:00]} 25. f3 {[%clk 0:01:31]}  Nh6 {[%clk 0:00:53]} 26. Bxc7 {[%clk 0:01:28]}  Nf5 {[%clk 0:00:50]} 27. Be5 {[%clk 0:01:23]}  Rg6 {[%clk 0:00:44]} 28. Bd3 {[%clk 0:01:23]}  Bd7 {[%clk 0:00:40]} 29. g4 {[%clk 0:01:23]}  Rge6 {[%clk 0:00:39]} 30. Bxf5 {[%clk 0:01:22]} 1-0


[Site "https://www.chess.com"]

[Event "Titled Tuesday Blitz March 07 Early 2023"]
[White "Sjugirov, Sanan"]
[Black "Bok, Benjamin"]
[WhiteFideId "4189302"]
[BlackFideId "1017063"]
[WhiteElo "2569"]
[BlackElo "2658"]
[Result "1-0"]
[Round "08"]
[TimeControl "180+2"]
[Date "2023.03.07"]
[WhiteClock "0:00:07"]
[BlackClock "0:00:02"]

1. e4 {[%clk 0:03:00]}  c5 {[%clk 0:02:59]} 2. Nf3 {[%clk 0:03:01]}  d6 {[%clk 0:03:00]} 3. d4 {[%clk 0:03:01]}  cxd4 {[%clk 0:03:01]} 4. Nxd4 {[%clk 0:03:02]}  Nf6 {[%clk 0:03:01]} 5. Nc3 {[%clk 0:03:02]}  a6 {[%clk 0:03:02]} 6. Be3 {[%clk 0:03:03]}  e5 {[%clk 0:03:02]} 7. Nf3 {[%clk 0:03:04]}  Be7 {[%clk 0:03:02]} 8. Bc4 {[%clk 0:03:04]}  O-O {[%clk 0:03:03]} 9. O-O {[%clk 0:03:04]}  Nc6 {[%clk 0:03:03]} 10. Qe2 {[%clk 0:03:03]}  Na5 {[%clk 0:03:03]} 11. Bd5 {[%clk 0:02:58]}  Qc7 {[%clk 0:02:49]} 12. Rfd1 {[%clk 0:02:54]}  Be6 {[%clk 0:02:45]} 13. Bg5 {[%clk 0:02:49]}  Rac8 {[%clk 0:02:44]} 14. Bxf6 {[%clk 0:02:44]}  Bxf6 {[%clk 0:02:44]} 15. Bb3 {[%clk 0:02:28]}  b5 {[%clk 0:02:20]} 16. Nd5 {[%clk 0:02:24]}  Bxd5 {[%clk 0:02:18]} 17. Rxd5 {[%clk 0:02:25]}  Nxb3 {[%clk 0:02:05]} 18. cxb3 {[%clk 0:02:26]}  Be7 {[%clk 0:01:59]} 19. Rad1 {[%clk 0:02:24]}  Qb7 {[%clk 0:01:53]} 20. Ne1 {[%clk 0:02:12]}  Rc6 {[%clk 0:01:17]} 21. g3 {[%clk 0:02:07]}  Rfc8 {[%clk 0:01:17]} 22. h4 {[%clk 0:02:05]}  g6 {[%clk 0:01:07]} 23. h5 {[%clk 0:02:00]}  Kg7 {[%clk 0:01:06]} 24. R5d2 {[%clk 0:01:49]}  Qd7 {[%clk 0:00:56]} 25. Kg2 {[%clk 0:01:47]}  Qe6 {[%clk 0:00:52]} 26. Nf3 {[%clk 0:01:21]}  Qg4 {[%clk 0:00:41]} 27. hxg6 {[%clk 0:01:09]}  hxg6 {[%clk 0:00:42]} 28. Rh1 {[%clk 0:01:09]}  Rc1 {[%clk 0:00:29]} 29. Rxc1 {[%clk 0:00:19]}  Rxc1 {[%clk 0:00:30]} 30. Rc2 {[%clk 0:00:20]}  Ra1 {[%clk 0:00:09]} 31. a3 {[%clk 0:00:19]}  Qh5 {[%clk 0:00:08]} 32. Ng1 {[%clk 0:00:14]}  Qxe2 {[%clk 0:00:07]} 33. Nxe2 {[%clk 0:00:13]}  Kf6 {[%clk 0:00:05]} 34. Nc3 {[%clk 0:00:13]}  Ke6 {[%clk 0:00:05]} 35. Nd5 {[%clk 0:00:13]}  Bd8 {[%clk 0:00:05]} 36. Rc8 {[%clk 0:00:12]}  Kd7 {[%clk 0:00:05]} 37. Ra8 {[%clk 0:00:12]}  Rb1 {[%clk 0:00:05]} 38. Rxa6 {[%clk 0:00:09]}  Rxb2 {[%clk 0:00:05]} 39. b4 {[%clk 0:00:09]}  f5 {[%clk 0:00:06]} 40. Nc3 {[%clk 0:00:07]}  fxe4 {[%clk 0:00:04]} 41. Nxe4 {[%clk 0:00:08]}  d5 {[%clk 0:00:03]} 42. Nc5+ {[%clk 0:00:09]}  Ke7 {[%clk 0:00:02]} 43. Re6+ {[%clk 0:00:09]}  Kf7 {[%clk 0:00:02]} 44. Rxe5 {[%clk 0:00:09]}  Rd2 {[%clk 0:00:02]} 45. Re3 {[%clk 0:00:06]}  Bf6 {[%clk 0:00:02]} 46. Rf3 {[%clk 0:00:06]}  Ke7 {[%clk 0:00:02]} 47. Rd3 {[%clk 0:00:05]}  Ra2 {[%clk 0:00:01]} 48. Rxd5 {[%clk 0:00:04]}  Rxa3 {[%clk 0:00:01]} 49. Ne4 {[%clk 0:00:05]}  Bg7 {[%clk 0:00:01]} 50. Rxb5 {[%clk 0:00:05]}  Rb3 {[%clk 0:00:02]} 51. Rb7+ {[%clk 0:00:05]}  Kf8 {[%clk 0:00:03]} 52. b5 {[%clk 0:00:05]}  Bd4 {[%clk 0:00:02]} 53. Rd7 {[%clk 0:00:05]}  Bb6 {[%clk 0:00:02]} 54. Rd5 {[%clk 0:00:06]}  Rb2 {[%clk 0:00:02]} 55. Kf3 {[%clk 0:00:05]}  Kf7 {[%clk 0:00:02]} 56. Rd7+ {[%clk 0:00:05]}  Kf8 {[%clk 0:00:02]} 57. Rd5 {[%clk 0:00:05]}  Kf7 {[%clk 0:00:02]} 58. Kf4 {[%clk 0:00:05]}  Bxf2 {[%clk 0:00:02]} 59. Nxf2 {[%clk 0:00:05]}  Rxf2+ {[%clk 0:00:02]} 60. Ke5 {[%clk 0:00:05]}  Rb2 {[%clk 0:00:03]} 61. Kd6 {[%clk 0:00:05]}  Kf6 {[%clk 0:00:03]} 62. g4 {[%clk 0:00:05]}  g5 {[%clk 0:00:02]} 63. Kc6 {[%clk 0:00:05]}  Rb4 {[%clk 0:00:03]} 64. b6 {[%clk 0:00:05]}  Rxg4 {[%clk 0:00:03]} 65. b7 {[%clk 0:00:05]}  Rc4+ {[%clk 0:00:03]} 66. Rc5 {[%clk 0:00:05]}  Rb4 {[%clk 0:00:03]} 67. Rb5 {[%clk 0:00:06]}  Rc4+ {[%clk 0:00:04]} 68. Kd5 {[%clk 0:00:06]}  Rc1 {[%clk 0:00:02]} 69. b8=Q {[%clk 0:00:07]} 1-0


[Site "https://www.chess.com"]

[Event "Titled Tuesday Blitz March 07 Early 2023"]
[White "Harsha Bharathakoti"]
[Black "Terry, Renato"]
[WhiteFideId "5078776"]
[BlackFideId "3803457"]
[WhiteElo "2481"]
[BlackElo "2579"]
[Result "1-0"]
[Round "08"]
[TimeControl "180+2"]
[Date "2023.03.07"]
[WhiteClock "0:00:11"]
[BlackClock "0:00:05"]

1. d4 {[%clk 0:03:00]}  e6 {[%clk 0:02:59]} 2. c4 {[%clk 0:03:00]}  Bb4+ {[%clk 0:02:59]} 3. Bd2 {[%clk 0:02:59]}  Qe7 {[%clk 0:02:59]} 4. Nf3 {[%clk 0:02:58]}  Nf6 {[%clk 0:02:59]} 5. g3 {[%clk 0:02:58]}  Nc6 {[%clk 0:02:59]} 6. Nc3 {[%clk 0:02:57]}  O-O {[%clk 0:02:59]} 7. Bg2 {[%clk 0:02:57]}  d6 {[%clk 0:03:00]} 8. O-O {[%clk 0:02:56]}  Bxc3 {[%clk 0:03:00]} 9. Bxc3 {[%clk 0:02:56]}  Ne4 {[%clk 0:03:01]} 10. Rc1 {[%clk 0:02:56]}  e5 {[%clk 0:02:59]} 11. d5 {[%clk 0:02:51]}  Nxc3 {[%clk 0:02:57]} 12. Rxc3 {[%clk 0:02:51]}  Nb8 {[%clk 0:02:58]} 13. c5 {[%clk 0:02:09]}  Na6 {[%clk 0:02:55]} 14. cxd6 {[%clk 0:02:06]}  cxd6 {[%clk 0:02:56]} 15. Nd2 {[%clk 0:01:52]}  Bg4 {[%clk 0:02:51]} 16. h3 {[%clk 0:01:50]}  Bd7 {[%clk 0:02:50]} 17. Qb3 {[%clk 0:01:43]}  Nc5 {[%clk 0:02:26]} 18. Qc2 {[%clk 0:01:43]}  a5 {[%clk 0:02:24]} 19. Nc4 {[%clk 0:01:35]}  Rfb8 {[%clk 0:01:29]} 20. Nxd6 {[%clk 0:01:14]}  Na4 {[%clk 0:01:29]} 21. Nf5 {[%clk 0:01:15]}  Qf6 {[%clk 0:01:18]} 22. Rf3 {[%clk 0:01:15]}  Rc8 {[%clk 0:01:18]} 23. Qb1 {[%clk 0:01:09]}  Rc5 {[%clk 0:01:01]} 24. Rd1 {[%clk 0:00:43]}  Rb5 {[%clk 0:00:24]} 25. b3 {[%clk 0:00:27]}  e4 {[%clk 0:00:08]} 26. Qxe4 {[%clk 0:00:20]}  Nc3 {[%clk 0:00:08]} 27. Ne7+ {[%clk 0:00:21]}  Kf8 {[%clk 0:00:09]} 28. Qxh7 {[%clk 0:00:13]}  Nxd1 {[%clk 0:00:04]} 29. Rxf6 {[%clk 0:00:12]}  gxf6 {[%clk 0:00:05]} 30. d6 {[%clk 0:00:11]} 1-0


[Site "https://www.chess.com"]

[Event "Titled Tuesday Blitz March 07 Early 2023"]
[White "Pranav, V"]
[Black "Vokhidov, Shamsiddin"]
[WhiteFideId "25060783"]
[BlackFideId "14204223"]
[WhiteElo "2500"]
[BlackElo "2570"]
[Result "0-1"]
[Round "08"]
[TimeControl "180+2"]
[Date "2023.03.07"]
[WhiteClock "0:00:01"]
[BlackClock "0:00:55"]

1. e4 {[%clk 0:03:00]}  c5 {[%clk 0:03:00]} 2. Nf3 {[%clk 0:03:01]}  e6 {[%clk 0:03:00]} 3. d4 {[%clk 0:03:00]}  cxd4 {[%clk 0:03:01]} 4. Nxd4 {[%clk 0:03:01]}  Nc6 {[%clk 0:03:02]} 5. Nc3 {[%clk 0:03:02]}  Qc7 {[%clk 0:03:02]} 6. Be2 {[%clk 0:03:02]}  a6 {[%clk 0:03:02]} 7. O-O {[%clk 0:03:02]}  Nf6 {[%clk 0:03:01]} 8. Be3 {[%clk 0:02:58]}  b5 {[%clk 0:03:01]} 9. Nxc6 {[%clk 0:02:52]}  dxc6 {[%clk 0:03:01]} 10. a3 {[%clk 0:02:39]}  e5 {[%clk 0:03:00]} 11. f4 {[%clk 0:02:38]}  Bd6 {[%clk 0:02:57]} 12. f5 {[%clk 0:02:23]}  Bb7 {[%clk 0:02:57]} 13. g4 {[%clk 0:02:19]}  h6 {[%clk 0:02:51]} 14. Bd3 {[%clk 0:02:08]}  c5 {[%clk 0:02:49]} 15. Bxb5+ {[%clk 0:02:07]}  Kf8 {[%clk 0:02:41]} 16. Bc4 {[%clk 0:01:55]}  Nxe4 {[%clk 0:02:38]} 17. Nxe4 {[%clk 0:01:55]}  Bxe4 {[%clk 0:02:39]} 18. Bd5 {[%clk 0:01:56]}  Bxd5 {[%clk 0:02:37]} 19. Qxd5 {[%clk 0:01:57]}  Rd8 {[%clk 0:02:37]} 20. Rad1 {[%clk 0:01:55]}  Kg8 {[%clk 0:02:25]} 21. h4 {[%clk 0:01:39]}  Be7 {[%clk 0:02:23]} 22. Qc4 {[%clk 0:01:29]}  Bxh4 {[%clk 0:02:19]} 23. Qxc5 {[%clk 0:01:27]}  Qb7 {[%clk 0:02:13]} 24. Qb6 {[%clk 0:00:41]}  Qc8 {[%clk 0:02:12]} 25. Rxd8+ {[%clk 0:00:38]}  Bxd8 {[%clk 0:02:13]} 26. Qb3 {[%clk 0:00:38]}  Qc7 {[%clk 0:01:45]} 27. Rd1 {[%clk 0:00:37]}  Kh7 {[%clk 0:01:44]} 28. c3 {[%clk 0:00:28]}  e4 {[%clk 0:01:41]} 29. Bf2 {[%clk 0:00:09]}  Qf4 {[%clk 0:01:41]} 30. Qxf7 {[%clk 0:00:06]}  Qxg4+ {[%clk 0:01:40]} 31. Kh2 {[%clk 0:00:07]}  Bc7+ {[%clk 0:01:11]} 32. Qxc7 {[%clk 0:00:06]}  Qxd1 {[%clk 0:01:11]} 33. Qf7 {[%clk 0:00:06]}  Qd6+ {[%clk 0:01:00]} 34. Kh3 {[%clk 0:00:04]}  Rf8 {[%clk 0:00:59]} 35. Qh5 {[%clk 0:00:01]}  Qf4 {[%clk 0:00:55]} 0-1


[Site "https://www.chess.com"]

[Event "Titled Tuesday Blitz March 07 Early 2023"]
[White "Hakobyan, Aram"]
[Black "Madaminov, Mukhiddin"]
[WhiteFideId "13306677"]
[BlackFideId "14210703"]
[WhiteElo "2563"]
[BlackElo "2511"]
[Result "1-0"]
[Round "08"]
[TimeControl "180+2"]
[Date "2023.03.07"]
[WhiteClock "0:01:46"]
[BlackClock "0:00:05"]

1. e4 {[%clk 0:03:00]}  e5 {[%clk 0:03:00]} 2. Nf3 {[%clk 0:03:00]}  Nc6 {[%clk 0:02:59]} 3. Bb5 {[%clk 0:02:59]}  a6 {[%clk 0:03:00]} 4. Ba4 {[%clk 0:02:59]}  Nf6 {[%clk 0:03:00]} 5. Nc3 {[%clk 0:02:57]}  b5 {[%clk 0:02:38]} 6. Bb3 {[%clk 0:02:55]}  b4 {[%clk 0:02:38]} 7. Nd5 {[%clk 0:02:54]}  Nxe4 {[%clk 0:02:39]} 8. d4 {[%clk 0:02:54]}  a5 {[%clk 0:01:57]} 9. O-O {[%clk 0:02:52]}  a4 {[%clk 0:01:48]} 10. Bc4 {[%clk 0:02:51]}  Nd6 {[%clk 0:01:49]} 11. Bg5 {[%clk 0:02:30]}  Ne7 {[%clk 0:01:19]} 12. Nxe5 {[%clk 0:02:22]}  Nxc4 {[%clk 0:01:11]} 13. Nxc4 {[%clk 0:02:23]}  Bb7 {[%clk 0:00:57]} 14. Nxe7 {[%clk 0:02:11]}  Bxe7 {[%clk 0:00:57]} 15. Bxe7 {[%clk 0:02:12]}  Kxe7 {[%clk 0:00:56]} 16. Qe1+ {[%clk 0:02:12]}  Kf6 {[%clk 0:00:50]} 17. Qxb4 {[%clk 0:02:03]}  Qb8 {[%clk 0:00:28]} 18. Ne5 {[%clk 0:02:01]}  Bc8 {[%clk 0:00:21]} 19. Qc3 {[%clk 0:01:54]}  Rf8 {[%clk 0:00:11]} 20. Rfe1 {[%clk 0:01:48]}  Qb7 {[%clk 0:00:05]} 21. d5 {[%clk 0:01:46]}  Qxd5 {[%clk 0:00:05]} 1-0


[Site "https://www.chess.com"]

[Event "Titled Tuesday Blitz March 07 Early 2023"]
[White "Kramnik, Vladimir"]
[Black "Corrales Jimenez, Fidel"]
[WhiteFideId "4101588"]
[BlackFideId "3506690"]
[WhiteElo "2712"]
[BlackElo "2541"]
[Result "0-1"]
[Round "08"]
[TimeControl "180+2"]
[Date "2023.03.07"]
[WhiteClock "0:00:01"]
[BlackClock "0:00:06"]

1. Nf3 {[%clk 0:03:00]}  c5 {[%clk 0:02:57]} 2. g3 {[%clk 0:03:01]}  Nc6 {[%clk 0:02:57]} 3. Bg2 {[%clk 0:03:00]}  g6 {[%clk 0:02:57]} 4. c3 {[%clk 0:02:59]}  Bg7 {[%clk 0:02:57]} 5. d4 {[%clk 0:02:59]}  cxd4 {[%clk 0:02:58]} 6. cxd4 {[%clk 0:02:59]}  d5 {[%clk 0:02:59]} 7. Nc3 {[%clk 0:02:58]}  e6 {[%clk 0:02:59]} 8. O-O {[%clk 0:02:56]}  Nge7 {[%clk 0:02:59]} 9. b3 {[%clk 0:02:53]}  O-O {[%clk 0:02:59]} 10. e3 {[%clk 0:02:40]}  b6 {[%clk 0:02:58]} 11. Ba3 {[%clk 0:02:40]}  Ba6 {[%clk 0:02:57]} 12. Re1 {[%clk 0:02:40]}  Qd7 {[%clk 0:02:57]} 13. Qd2 {[%clk 0:02:34]}  Rfc8 {[%clk 0:02:57]} 14. Rad1 {[%clk 0:02:33]}  Nf5 {[%clk 0:02:53]} 15. h4 {[%clk 0:02:28]}  Nd6 {[%clk 0:02:52]} 16. h5 {[%clk 0:02:18]}  Rc7 {[%clk 0:02:39]} 17. Bxd6 {[%clk 0:02:15]}  Qxd6 {[%clk 0:02:39]} 18. e4 {[%clk 0:02:15]}  Nb4 {[%clk 0:02:21]} 19. h6 {[%clk 0:02:09]}  Bf8 {[%clk 0:02:14]} 20. Ne5 {[%clk 0:02:04]}  Rac8 {[%clk 0:02:12]} 21. Re3 {[%clk 0:01:56]}  Bxh6 {[%clk 0:01:59]} 22. f4 {[%clk 0:01:55]}  Bf8 {[%clk 0:01:43]} 23. a3 {[%clk 0:01:53]}  Na2 {[%clk 0:01:42]} 24. Qxa2 {[%clk 0:01:41]}  Rxc3 {[%clk 0:01:42]} 25. Rxc3 {[%clk 0:01:41]}  Rxc3 {[%clk 0:01:43]} 26. Kh2 {[%clk 0:01:29]}  dxe4 {[%clk 0:01:37]} 27. Bxe4 {[%clk 0:01:28]}  Re3 {[%clk 0:01:34]} 28. Bf3 {[%clk 0:01:21]}  f6 {[%clk 0:01:18]} 29. Qf2 {[%clk 0:01:20]}  Rxb3 {[%clk 0:01:17]} 30. Ng4 {[%clk 0:01:19]}  Kg7 {[%clk 0:01:13]} 31. d5 {[%clk 0:01:17]}  Bb7 {[%clk 0:00:53]} 32. Ne3 {[%clk 0:01:02]}  Qxa3 {[%clk 0:00:41]} 33. Re1 {[%clk 0:00:45]}  Rb2 {[%clk 0:00:39]} 34. Re2 {[%clk 0:00:44]}  Rxe2 {[%clk 0:00:39]} 35. Qxe2 {[%clk 0:00:44]}  exd5 {[%clk 0:00:34]} 36. Bxd5 {[%clk 0:00:40]}  Bc5 {[%clk 0:00:32]} 37. Nf5+ {[%clk 0:00:35]}  gxf5 {[%clk 0:00:28]} 38. Bxb7 {[%clk 0:00:36]}  Qe3 {[%clk 0:00:25]} 39. Qh5 {[%clk 0:00:31]}  Qd2+ {[%clk 0:00:17]} 40. Kh3 {[%clk 0:00:30]}  Qd7 {[%clk 0:00:16]} 41. Ba6 {[%clk 0:00:27]}  b5 {[%clk 0:00:15]} 42. Qe2 {[%clk 0:00:27]}  b4 {[%clk 0:00:15]} 43. Bc4 {[%clk 0:00:25]}  a5 {[%clk 0:00:13]} 44. Bb5 {[%clk 0:00:21]}  Qe7 {[%clk 0:00:12]} 45. Qd3 {[%clk 0:00:20]}  Qe4 {[%clk 0:00:11]} 46. Qd7+ {[%clk 0:00:20]}  Kh6 {[%clk 0:00:12]} 47. Bc6 {[%clk 0:00:19]}  Qe7 {[%clk 0:00:06]} 48. Qxf5 {[%clk 0:00:18]}  Kg7 {[%clk 0:00:05]} 49. Be4 {[%clk 0:00:17]}  Kh8 {[%clk 0:00:06]} 50. Bc2 {[%clk 0:00:15]}  Kg8 {[%clk 0:00:04]} 51. Qd5+ {[%clk 0:00:14]}  Kg7 {[%clk 0:00:03]} 52. Qd3 {[%clk 0:00:13]}  Qe6+ {[%clk 0:00:02]} 53. Kh2 {[%clk 0:00:11]}  Kf8 {[%clk 0:00:03]} 54. Qb5 {[%clk 0:00:09]}  Qd5 {[%clk 0:00:02]} 55. Qb8+ {[%clk 0:00:06]}  Ke7 {[%clk 0:00:03]} 56. Qc7+ {[%clk 0:00:06]}  Ke8 {[%clk 0:00:02]} 57. Qxh7 {[%clk 0:00:04]}  Kd8 {[%clk 0:00:03]} 58. Qh8+ {[%clk 0:00:03]}  Kc7 {[%clk 0:00:02]} 59. Qxf6 {[%clk 0:00:03]}  Qd2+ {[%clk 0:00:02]} 60. Kh3 {[%clk 0:00:02]}  Qxc2 {[%clk 0:00:03]} 61. Qe5+ {[%clk 0:00:02]}  Kc6 {[%clk 0:00:03]} 62. Qe6+ {[%clk 0:00:02]}  Kb5 {[%clk 0:00:04]} 63. Qe7 {[%clk 0:00:02]}  Ka4 {[%clk 0:00:04]} 64. Qd7+ {[%clk 0:00:01]}  Kb3 {[%clk 0:00:05]} 65. f5 {[%clk 0:00:01]}  Qc4 {[%clk 0:00:06]} 0-1


[Site "https://www.chess.com"]

[Event "Titled Tuesday Blitz March 07 Early 2023"]
[White "Keymer, Vincent"]
[Black "Nogerbek, Kazybek"]
[WhiteFideId "12940690"]
[BlackFideId "13710427"]
[WhiteElo "2651"]
[BlackElo "2501"]
[Result "1/2-1/2"]
[Round "08"]
[TimeControl "180+2"]
[Date "2023.03.07"]
[WhiteClock "0:00:04"]
[BlackClock "0:00:21"]

1. a3 {[%clk 0:03:00]}  g6 {[%clk 0:02:37]} 2. Nf3 {[%clk 0:02:58]}  d5 {[%clk 0:02:37]} 3. e3 {[%clk 0:02:54]}  Bg7 {[%clk 0:02:37]} 4. c4 {[%clk 0:02:55]}  Nf6 {[%clk 0:02:36]} 5. b4 {[%clk 0:02:50]}  O-O {[%clk 0:02:34]} 6. Bb2 {[%clk 0:02:50]}  c6 {[%clk 0:02:34]} 7. Be2 {[%clk 0:02:47]}  Bg4 {[%clk 0:02:34]} 8. d3 {[%clk 0:02:23]}  Bxf3 {[%clk 0:02:30]} 9. Bxf3 {[%clk 0:02:22]}  Nbd7 {[%clk 0:02:31]} 10. Nd2 {[%clk 0:02:19]}  e6 {[%clk 0:02:30]} 11. O-O {[%clk 0:02:18]}  a5 {[%clk 0:02:29]} 12. Qb3 {[%clk 0:02:16]}  Qc7 {[%clk 0:02:20]} 13. h3 {[%clk 0:02:10]}  h6 {[%clk 0:02:15]} 14. Rfc1 {[%clk 0:02:10]}  Qb6 {[%clk 0:02:09]} 15. Be2 {[%clk 0:02:04]}  Rfc8 {[%clk 0:02:03]} 16. d4 {[%clk 0:02:00]}  axb4 {[%clk 0:02:01]} 17. axb4 {[%clk 0:01:59]}  Qd8 {[%clk 0:02:02]} 18. Rxa8 {[%clk 0:01:52]}  Rxa8 {[%clk 0:02:03]} 19. b5 {[%clk 0:01:53]}  Ne8 {[%clk 0:02:01]} 20. Qb4 {[%clk 0:01:30]}  Qa5 {[%clk 0:01:45]} 21. Qxa5 {[%clk 0:01:10]}  Rxa5 {[%clk 0:01:46]} 22. bxc6 {[%clk 0:01:10]}  bxc6 {[%clk 0:01:46]} 23. cxd5 {[%clk 0:01:11]}  cxd5 {[%clk 0:01:46]} 24. Rc8 {[%clk 0:01:11]}  Nf6 {[%clk 0:01:39]} 25. Bc3 {[%clk 0:01:11]}  Ra7 {[%clk 0:01:32]} 26. Bb5 {[%clk 0:01:10]}  Rc7 {[%clk 0:01:28]} 27. Rxc7 {[%clk 0:01:00]}  Nxc7 {[%clk 0:01:29]} 28. Bd3 {[%clk 0:01:01]}  Nd7 {[%clk 0:01:22]} 29. Ba5 {[%clk 0:00:57]}  Ne8 {[%clk 0:01:19]} 30. Bb5 {[%clk 0:00:57]}  Ndf6 {[%clk 0:01:20]} 31. f3 {[%clk 0:00:52]}  Nd6 {[%clk 0:01:20]} 32. Bd3 {[%clk 0:00:52]}  Nd7 {[%clk 0:01:17]} 33. Bc7 {[%clk 0:00:48]}  Ne8 {[%clk 0:01:15]} 34. Bg3 {[%clk 0:00:41]}  Bf8 {[%clk 0:01:12]} 35. Bb5 {[%clk 0:00:40]}  Ndf6 {[%clk 0:01:12]} 36. Kf1 {[%clk 0:00:38]}  Bd6 {[%clk 0:01:11]} 37. Bf2 {[%clk 0:00:35]}  Bb4 {[%clk 0:01:11]} 38. Ke2 {[%clk 0:00:33]}  Nd6 {[%clk 0:01:11]} 39. Bd3 {[%clk 0:00:33]}  Bxd2 {[%clk 0:01:07]} 40. Kxd2 {[%clk 0:00:33]}  Kf8 {[%clk 0:01:07]} 41. g4 {[%clk 0:00:30]}  Nd7 {[%clk 0:01:06]} 42. Be1 {[%clk 0:00:21]}  Ke8 {[%clk 0:01:02]} 43. Ke2 {[%clk 0:00:21]}  Nb6 {[%clk 0:01:02]} 44. h4 {[%clk 0:00:20]}  Nbc4 {[%clk 0:01:02]} 45. Bg3 {[%clk 0:00:20]}  Ke7 {[%clk 0:01:01]} 46. Bf4 {[%clk 0:00:20]}  h5 {[%clk 0:00:59]} 47. Bg3 {[%clk 0:00:18]}  Kf6 {[%clk 0:00:55]} 48. Bf4 {[%clk 0:00:17]}  Kg7 {[%clk 0:00:55]} 49. gxh5 {[%clk 0:00:15]}  gxh5 {[%clk 0:00:55]} 50. e4 {[%clk 0:00:16]}  Nb5 {[%clk 0:00:51]} 51. Kf2 {[%clk 0:00:09]}  f6 {[%clk 0:00:48]} 52. Be3 {[%clk 0:00:07]}  Nxe3 {[%clk 0:00:45]} 53. Kxe3 {[%clk 0:00:08]}  Nd6 {[%clk 0:00:45]} 54. exd5 {[%clk 0:00:07]}  exd5 {[%clk 0:00:46]} 55. Kf4 {[%clk 0:00:07]}  Kf7 {[%clk 0:00:44]} 56. Bc2 {[%clk 0:00:06]}  Nb5 {[%clk 0:00:41]} 57. Ke3 {[%clk 0:00:06]}  Nd6 {[%clk 0:00:42]} 58. Bb1 {[%clk 0:00:06]}  Ke6 {[%clk 0:00:37]} 59. Kf4 {[%clk 0:00:05]}  Nb5 {[%clk 0:00:28]} 60. Bf5+ {[%clk 0:00:05]}  Kf7 {[%clk 0:00:26]} 61. Ke3 {[%clk 0:00:05]}  Nd6 {[%clk 0:00:27]} 62. Bc2 {[%clk 0:00:05]}  Ke6 {[%clk 0:00:27]} 63. Kf4 {[%clk 0:00:04]}  Kf7 {[%clk 0:00:27]} 64. Bf5 {[%clk 0:00:03]}  Nb5 {[%clk 0:00:25]} 65. Ke3 {[%clk 0:00:04]}  Nd6 {[%clk 0:00:26]} 66. Bd7 {[%clk 0:00:03]}  Ke7 {[%clk 0:00:26]} 67. Bh3 {[%clk 0:00:03]}  Kf7 {[%clk 0:00:24]} 68. Kf4 {[%clk 0:00:03]}  Nb5 {[%clk 0:00:24]} 69. Ke3 {[%clk 0:00:03]}  Nd6 {[%clk 0:00:25]} 70. Kf4 {[%clk 0:00:04]}  Nb5 {[%clk 0:00:25]} 71. Ke3 {[%clk 0:00:04]}  Nd6 {[%clk 0:00:21]} 1/2-1/2


[Site "https://www.chess.com"]